fUST/lending_fUST_20240804
["ID","MTS","AMOUNT","RATE_DAILY","PERIOD"]
[334079159,1722743439598,-500.0,0.00015534,2]
[334079160,1722743439609,-532.45602284,0.00015534,2]
[334079161,1722743439618,-500.0,0.00015534,2]
[334079162,1722743439628,-500.0,0.00015534,2]
[334079163,1722743439638,-509.12524496,0.00015534,2]
[334079164,1722743439648,-507.39117059,0.00015534,2]
[334079165,1722743439657,-507.08426299,0.00015534,2]
[334079166,1722743439667,-507.95064437,0.00015534,2]
[334079167,1722743439677,-512.38883166,0.00015534,2]
[334079168,1722743439686,-505.68992507,0.00015534,2]
[334079169,1722743439695,-506.00746861,0.00015534,2]
[334079170,1722743439705,-505.52300585,0.00015534,2]
[334079171,1722743439720,-504.54210344,0.00015534,2]
[334079172,1722743439730,-500.0,0.00015534,2]
[334079173,1722743439739,-500.0,0.00015534,2]
[334079174,1722743439750,-506.19845961,0.00015534,2]
[334079175,1722743439762,-504.18592551,0.00015534,2]
[334079176,1722743439772,-505.94111767,0.00015534,2]
[334079177,1722743439781,-509.32169016,0.00015534,2]
[334079178,1722743439793,-521.13395278,0.00015534,2]
[334079179,1722743439804,-510.98509822,0.00015534,2]
[334079180,1722743439814,-508.45194354,0.00015534,2]
[334079181,1722743439824,-500.0,0.00015534,2]
[334079182,1722743439832,-185.38,0.00015534,2]
[334079183,1722743439841,-500.0,0.00015534,2]
[334079184,1722743439850,-500.0,0.00015534,2]
[334079185,1722743439860,-500.0,0.00015534,2]
[334079186,1722743439870,-500.0,0.00015534,2]
[334079187,1722743439879,-500.0,0.00015534,2]
[334079188,1722743439889,-422.73331173,0.00015534,2]
[334079189,1722743439898,-509.1937834,0.00015534,2]
[334079190,1722743439907,-171.35924452,0.00015534,2]
[334079191,1722743439917,-500.0,0.00015543,2]
[334079192,1722743439926,-500.0,0.00015543,2]
[334079193,1722743439936,-307.82624489,0.00015543,2]
[334079194,1722743439945,-500.0,0.00015543,2]
[334079195,1722743439955,-500.0,0.00015543,2]
[334079196,1722743439964,-500.0,0.00015543,2]
[334079197,1722743439974,-500.0,0.00015543,2]
[334079199,1722743439983,-681.89,0.00015543,2]
[334079201,1722743439992,-500.0,0.00015543,2]
[334079203,1722743440001,-500.0,0.00015543,2]
[334079204,1722743440011,-214.98,0.00015543,2]
[334079206,1722743440020,-510.20461903,0.00015543,2]
[334079207,1722743440030,-454.98,0.00015543,2]
[334079209,1722743440039,-212.63611673,0.00015543,2]
[334079282,1722743446549,-500.0,0.00015533,2]
[334079283,1722743446561,-296.90095279,0.00015543,2]
[334079284,1722743446571,-585.73,0.00015543,2]
[334079285,1722743446581,-500.0,0.00015543,2]
[334079286,1722743446591,-642.89,0.00015543,2]
[334079287,1722743446602,-500.0,0.00015543,2]
[334079288,1722743446614,-500.0,0.00015544,2]
[334079289,1722743446623,-484.40621185,0.00015545,2]
[334079290,1722743446632,-500.47572471,0.00015545,2]
[334079291,1722743446642,-192.75738495,0.00015587,2]
[334079292,1722743446652,-500.0,0.00015608,2]
[334079293,1722743446662,-192.75738491,0.00015612,2]
[334079294,1722743446672,-294.43529831,0.00015634,2]
[334079295,1722743446683,-192.75738491,0.00015638,2]
[334079296,1722743446693,-192.75738491,0.00015663,2]
[334079297,1722743446704,-166.86283765,0.00015687,2]
[334079298,1722743446717,-192.75738491,0.00015688,2]
[334079299,1722743446727,-500.0,0.00015689,2]
[334079300,1722743446737,-500.0,0.00015689,2]
[334079301,1722743446746,-681.89,0.00015689,2]
[334079302,1722743446755,-500.0,0.00015689,2]
[334079303,1722743446766,-500.0,0.00015697,2]
[334079304,1722743446776,-500.0,0.00015697,2]
[334079305,1722743446787,-681.89,0.00015697,2]
[334079306,1722743446798,-199.7070501,0.00015697,2]
[334079317,1722743768022,42232.90115527,0.0001075,6]
[334079318,1722743793428,7767.09884473,0.00015,15]
[334079321,1722744358100,-156.96415589,9.999e-05,2]
[334079322,1722744358123,-200.57810138,9.999e-05,2]
[334079323,1722744358144,-417.53482764,9.999e-05,2]
[334079324,1722744358165,-523.06806918,9.999e-05,2]
[334079325,1722744358185,-31.90905629,0.0001,2]
[334079326,1722744434172,-156.42758895,9.999e-05,2]
[334079327,1722744434197,-406.35704051,0.0001,2]
[334079328,1722744438095,-377.953782,0.0001,2]
[334079329,1722744438116,-309.73672378,0.0001,2]
[334079330,1722744438138,-686.02289442,0.0001,2]
[334079331,1722744440100,-1730.30553449,0.0001,2]
[334079333,1722744549126,-581.85213857,9.999e-05,2]
[334079334,1722744549148,-155.5402478,9.999e-05,2]
[334079335,1722744549169,-156.96415589,9.999e-05,2]
[334079336,1722744549190,-3948.26728647,0.0001,2]
[334079337,1722744549210,-744.93504375,0.00012121,2]
[334079338,1722744570828,138.87730549,0.00012119,2]
[334079339,1722744570851,16.28576663,0.00012119,2]
[334079340,1722744597528,156.96415589,0.00012121,2]
[334079368,1722744632324,-656.90878816,0.00014247,2]
[334079370,1722744632337,-55.59121184,0.00014247,2]
[334079372,1722744632348,-160.792009,0.00014247,2]
[334079373,1722744632358,-166.545193,0.00014514,2]
[334079375,1722744632369,-1091.57771247,0.0001469,2]
[334079377,1722744632379,-194.5599409,0.0001469,2]
[334079379,1722744632388,-1410.0,0.00014979,2]
[334079380,1722744632399,-951.69950854,0.00015,2]
[334079381,1722744632409,-154.72922386,0.00015,2]
[334079382,1722744632419,-153.0,0.00015,2]
[334079383,1722744632429,-206.960494,0.00015,2]
[334079384,1722744632438,-1108.76834352,0.00015,2]
[334079385,1722744632448,-153.0,0.00015,2]
[334079386,1722744632458,-306.0,0.000152,2]
[334079387,1722744632467,-206.960494,0.000152,2]
[334079388,1722744632476,-153.0,0.000152,2]
[334079389,1722744632485,-153.0,0.00015233,2]
[334079390,1722744632494,-153.0,0.00015233,2]
[334079391,1722744632503,-153.0,0.00015233,2]
[334079392,1722744632513,-153.0,0.000154,2]
[334079393,1722744632522,-206.9604941,0.000154,2]
[334079394,1722744632531,-367.88690048,0.00015429,2]
[334079395,1722744632541,-500.0,0.00015533,2]
[334079396,1722744632550,-500.0,0.00015533,2]
[334079397,1722744632559,-173.29321562,0.00015533,2]
[334079398,1722744632569,-500.47758651,0.00015543,2]
[334079399,1722744632579,-413.6390345,0.000156,2]
[334079400,1722744632588,-173.228744,0.000156,2]
[334079401,1722744632598,-178.10847713,0.000156,2]
[334079402,1722744632608,-178.10847712,0.00015609,2]
[334079403,1722744632717,-500.0,0.00015697,2]
[334079404,1722744632727,-500.0,0.00015697,2]
[334079405,1722744632737,-500.0,0.00015697,2]
[334079406,1722744632748,-500.0,0.00015697,2]
[334079407,1722744632758,-540.69,0.00015697,2]
[334079408,1722744632769,-500.0,0.00015697,2]
[334079409,1722744632779,-500.0,0.00015697,2]
[334079410,1722744632791,-500.0,0.00015697,2]
[334079411,1722744632802,-500.0,0.00015697,2]
[334079412,1722744632813,-500.0,0.00015697,2]
[334079413,1722744632822,-500.0,0.00015697,2]
[334079414,1722744632831,-500.0,0.00015697,2]
[334079415,1722744632843,-500.0,0.00015697,2]
[334079416,1722744632854,-500.0,0.00015697,2]
[334079417,1722744632864,-500.0,0.00015697,2]
[334079418,1722744632874,-742.49,0.00015697,2]
[334079419,1722744632884,-500.0,0.00015697,2]
[334079420,1722744632895,-500.0,0.00015697,2]
[334079421,1722744632906,-473.96624936,0.00015697,2]
[334079422,1722744632917,-500.0,0.00015697,2]
[334079423,1722744632928,-718.13,0.00015697,2]
[334079424,1722744632938,-500.0,0.00015697,2]
[334079425,1722744632948,-500.0,0.00015697,2]
[334079426,1722744632957,-591.62,0.00015697,2]
[334079427,1722744632969,-150.6049897,0.00015697,2]
[334079428,1722744632978,-500.0,0.00015697,2]
[334079429,1722744632987,-500.0,0.00015697,2]
[334079430,1722744632996,-166.01,0.00015697,2]
[334079431,1722744633006,-561.32,0.00015697,2]
[334079432,1722744633015,-10019.47712951,0.00015698,2]
[334079447,1722744638499,-1847.64465184,0.00015698,2]
[334079449,1722744638778,-17717.35894554,0.00015698,2]
[334079452,1722744639201,-8130.43895646,0.00015698,2]
[334079559,1722744652277,155.17870743,9.999e-05,2]
[334079560,1722744695175,156.96415589,9.999e-05,2]
[334079561,1722744704996,156.96415589,9.999e-05,2]
[334079577,1722745526989,502.85531092,9.999e-05,7]
[334079580,1722745627130,-165.62828221,9.999e-05,2]
[334079581,1722745627153,-182.0827797,9.999e-05,2]
[334079582,1722745627174,-155.36261284,9.999e-05,2]
[334079583,1722745627195,-154.82996095,0.00013,2]
[334079584,1722745627215,-154.89029997,0.00014,2]
[334079585,1722745627235,-302.9332497,0.00014097,2]
[334079586,1722745627255,-818.34130075,0.00014152,2]
[334079587,1722745628130,-139.16233625,0.00014152,2]
[334079588,1722745628153,-609.30178079,0.00014242,2]
[334079589,1722745640106,-585.61372891,0.00014242,2]
[334079590,1722745640127,-24.43698718,0.00014247,2]
[334079591,1722745644093,-321.87875244,0.00014247,2]
[334079593,1722745760102,-5975.6165018,0.000139,2]
[334079643,1722745832897,-403.68426038,0.00014247,2]
[334079644,1722745832907,-514.43533851,0.00014341,2]
[334079729,1722745840935,-2485.56466149,0.00014341,2]
[334079730,1722745840946,-434.96973564,0.0001469,2]
[334079731,1722745840957,-240.26291183,0.0001469,2]
[334079732,1722745840967,-206.960494,0.00014878,2]
[334079733,1722745840976,-153.0,0.00014878,2]
[334079734,1722745840987,-294.2310959,0.000149,2]
[334079735,1722745840998,-487.89506078,0.00014978,2]
[334079744,1722745846787,-100.59337112,0.00014978,2]
[334079745,1722745846797,-153.0,0.00014978,2]
[334079746,1722745846806,-300.0,0.00014999,2]
[334079747,1722745846815,-186.0253114,0.00015,2]
[334079748,1722745846824,-951.69950854,0.00015,2]
[334079749,1722745846833,-459.69835721,0.00015,4]
[334079750,1722745846842,-306.0,0.00015,2]
[334079751,1722745846851,-306.0,0.00015,2]
[334079752,1722745846860,-2848.36326452,0.00015,2]
[334079753,1722745846869,-154.72922386,0.00015,2]
[334079754,1722745846878,-294.2310959,0.00015,2]
[334079755,1722745846887,-206.6720958,0.00015,2]
[334079756,1722745846896,-150.44005395,0.00015376,2]
[334079757,1722745846906,-2623.42542463,0.00015443,2]
[334079758,1722745846915,-367.88690048,0.00015499,2]
[334079759,1722745846925,-153.0,0.000155,2]
[334079760,1722745846934,-200.47971645,0.00015573,2]
[334079761,1722745846944,-200.0,0.00015573,2]
[334079762,1722745846953,-2157.27716452,0.00015584,2]
[334079763,1722745846962,-500.0,0.00015597,2]
[334079764,1722745846971,-189.10402983,0.00015597,2]
[334079765,1722745846981,-500.0,0.00015597,2]
[334079766,1722745846990,-500.0,0.00015597,2]
[334079767,1722745846998,-500.0,0.00015597,2]
[334079768,1722745847011,-290.03128102,0.00015597,2]
[334079769,1722745847027,-500.0,0.00015597,2]
[334079770,1722745847040,-500.0,0.00015597,2]
[334079771,1722745847049,-500.0,0.00015597,2]
[334079772,1722745847059,-500.0,0.00015597,2]
[334079773,1722745847069,-500.0,0.00015597,2]
[334079774,1722745847078,-500.0,0.00015597,2]
[334079775,1722745847088,-500.0,0.00015597,2]
[334079776,1722745847097,-500.0,0.00015597,2]
[334079777,1722745847107,-474.36877829,0.00015597,2]
[334079778,1722745847116,-500.0,0.00015597,2]
[334079779,1722745847125,-500.0,0.00015597,2]
[334079780,1722745847136,-446.38916293,0.00015597,2]
[334079781,1722745847148,-500.0,0.00015597,2]
[334079782,1722745847160,-298.55067901,0.00015597,2]
[334079783,1722745847170,-500.0,0.00015597,2]
[334079784,1722745847181,-500.0,0.00015597,2]
[334079785,1722745847191,-500.0,0.00015597,2]
[334079786,1722745847201,-500.0,0.00015597,2]
[334079787,1722745847210,-500.0,0.00015597,2]
[334079788,1722745847220,-500.0,0.00015597,2]
[334079789,1722745847230,-500.0,0.00015597,2]
[334079790,1722745847239,-500.0,0.00015597,2]
[334079791,1722745847249,-500.0,0.00015597,2]
[334079792,1722745847260,-500.0,0.00015597,2]
[334079793,1722745847402,-500.0,0.00015597,2]
[334079794,1722745847414,-250.0,0.00015597,2]
[334079795,1722745847426,-500.0,0.00015597,2]
[334079796,1722745847436,-500.0,0.00015597,2]
[334079797,1722745847447,-500.0,0.00015597,2]
[334079798,1722745847458,-500.0,0.00015597,2]
[334079799,1722745847468,-500.0,0.00015597,2]
[334079800,1722745847481,-500.0,0.00015597,2]
[334079801,1722745847490,-500.0,0.00015597,2]
[334079802,1722745847499,-500.0,0.00015597,2]
[334079803,1722745847509,-500.0,0.00015597,2]
[334079804,1722745847518,-500.0,0.00015597,2]
[334079805,1722745847527,-500.0,0.00015597,2]
[334079806,1722745847535,-500.0,0.00015597,2]
[334079807,1722745847547,-500.0,0.00015597,2]
[334079808,1722745847560,-500.0,0.00015597,2]
[334079809,1722745847571,-500.0,0.00015597,2]
[334079810,1722745847583,-500.0,0.00015597,2]
[334079811,1722745847594,-500.0,0.00015597,2]
[334079812,1722745847604,-500.0,0.00015597,2]
[334079813,1722745847614,-500.0,0.00015597,2]
[334079814,1722745847623,-500.0,0.00015597,2]
[334079815,1722745847634,-500.0,0.00015597,2]
[334079816,1722745847643,-500.0,0.00015597,2]
[334079817,1722745847654,-500.0,0.00015597,2]
[334079818,1722745847663,-500.0,0.00015597,2]
[334079819,1722745847673,-500.0,0.00015597,2]
[334079820,1722745847684,-500.0,0.00015597,2]
[334079821,1722745847695,-500.0,0.00015597,2]
[334079822,1722745847705,-500.0,0.00015597,2]
[334079823,1722745847715,-500.0,0.00015597,2]
[334079824,1722745847723,-500.0,0.00015597,2]
[334079825,1722745847734,-500.0,0.00015597,2]
[334079826,1722745847745,-500.0,0.00015597,2]
[334079827,1722745847756,-500.0,0.00015597,2]
[334079828,1722745847767,-500.0,0.00015597,2]
[334079829,1722745847777,-500.0,0.00015597,2]
[334079830,1722745847787,-500.0,0.00015597,2]
[334079831,1722745847797,-500.0,0.00015597,2]
[334079832,1722745847806,-500.0,0.00015597,2]
[334079833,1722745847818,-500.0,0.00015597,2]
[334079834,1722745847828,-500.0,0.00015597,2]
[334079835,1722745847837,-500.0,0.00015597,2]
[334079836,1722745847846,-500.0,0.00015597,2]
[334079837,1722745847856,-500.0,0.00015597,2]
[334079838,1722745847866,-500.0,0.00015597,2]
[334079839,1722745847875,-500.0,0.00015597,2]
[334079840,1722745847885,-500.0,0.00015597,2]
[334079841,1722745847894,-500.0,0.00015597,2]
[334079842,1722745847903,-500.0,0.00015597,2]
[334079843,1722745847913,-500.0,0.00015597,2]
[334079844,1722745847922,-500.0,0.00015597,2]
[334079845,1722745847932,-500.0,0.00015597,2]
[334079846,1722745847942,-500.0,0.00015597,2]
[334079847,1722745847952,-500.0,0.00015597,2]
[334079848,1722745847961,-500.0,0.00015597,2]
[334079849,1722745847971,-584.86328044,0.00015597,2]
[334079850,1722745847980,-5954.65839209,0.00015598,5]
[334079851,1722745847990,-74898.4774976,0.00015598,2]
[334079852,1722745847999,-500.0,0.00015598,2]
[334079853,1722745848009,-500.0,0.00015598,2]
[334079854,1722745848019,-500.0,0.00015598,2]
[334079855,1722745848028,-2058.29,0.00015598,2]
[334079856,1722745848037,-500.0,0.00015598,2]
[334079857,1722745848047,-500.0,0.00015598,2]
[334079858,1722745848057,-500.0,0.00015598,2]
[334079859,1722745848066,-500.0,0.00015598,2]
[334079860,1722745848075,-500.0,0.00015598,2]
[334079861,1722745848084,-1394.61,0.00015598,2]
[334079862,1722745848094,-500.0,0.00015598,2]
[334079863,1722745848103,-500.0,0.00015598,2]
[334079864,1722745848112,-500.0,0.00015598,2]
[334079865,1722745848122,-500.0,0.00015598,2]
[334079866,1722745848131,-500.0,0.00015598,2]
[334079867,1722745848140,-500.0,0.00015598,2]
[334079868,1722745848150,-500.0,0.00015598,2]
[334079869,1722745848163,-212.538934,0.00015598,2]
[334079870,1722745848172,-212.538934,0.00015598,2]
[334079871,1722745848182,-500.0,0.00015598,2]
[334079872,1722745848191,-212.538934,0.00015598,2]
[334079873,1722745848200,-212.538934,0.00015598,2]
[334079874,1722745848210,-500.0,0.00015598,2]
[334079875,1722745848219,-500.0,0.00015598,2]
[334079876,1722745848228,-500.0,0.00015598,2]
[334079877,1722745848237,-500.0,0.00015598,2]
[334079878,1722745848247,-151.0,0.00015598,2]
[334079879,1722745848258,-151.0,0.00015598,2]
[334079880,1722745848267,-151.0,0.00015598,2]
[334079881,1722745848276,-151.0,0.00015598,2]
[334079882,1722745848286,-500.0,0.00015598,2]
[334079883,1722745848295,-522.05307188,0.00015598,2]
[334079884,1722745848305,-151.0,0.00015598,2]
[334079885,1722745848314,-151.0,0.00015598,2]
[334079886,1722745848324,-1008.185494,0.00015598,2]
[334079887,1722745848335,-1008.185494,0.00015598,2]
[334079888,1722745848345,-500.0,0.00015598,2]
[334079889,1722745848356,-151.0,0.00015598,2]
[334079890,1722745848365,-151.0,0.00015598,2]
[334079891,1722745848376,-1008.185494,0.00015598,2]
[334079892,1722745848385,-1008.185494,0.00015598,2]
[334079893,1722745848395,-500.0,0.00015598,2]
[334079894,1722745848405,-500.0,0.00015598,2]
[334079895,1722745848415,-832.68,0.00015598,2]
[334079896,1722745848428,-500.0,0.00015598,2]
[334079897,1722745848438,-471.60219609,0.00015598,2]
[334079898,1722745848448,-151.0,0.00015598,2]
[334079899,1722745848457,-167.0,0.00015598,2]
[334079900,1722745848467,-500.0,0.00015598,2]
[334079901,1722745848481,-500.0,0.00015598,2]
[334079902,1722745848491,-212.538934,0.00015599,2]
[334079903,1722745848501,-212.538934,0.00015599,2]
[334079904,1722745848511,-151.0,0.00015599,2]
[334079905,1722745848521,-151.0,0.00015599,2]
[334079906,1722745848531,-151.0,0.00015599,2]
[334079907,1722745848540,-1008.185494,0.00015599,2]
[334079908,1722745848550,-186.908689,0.00015599,2]
[334079909,1722745848562,-1008.185494,0.00015599,2]
[334079910,1722745848573,-37449.2387488,0.00015599,2]
[334079911,1722745848584,-151.0,0.00015607,2]
[334079912,1722745848593,-151.0,0.00015607,2]
[334079913,1722745848603,-2058.29,0.00015607,2]
[334079914,1722745848612,-951.106611,0.00015607,2]
[334079915,1722745848623,-951.106611,0.00015607,2]
[334079916,1722745848632,-951.106611,0.00015607,2]
[334079917,1722745848641,-951.106611,0.00015607,2]
[334079918,1722745848651,-1353.828327,0.00015607,2]
[334079919,1722745848660,-1353.828327,0.00015607,2]
[334079920,1722745848670,-1353.828327,0.00015607,2]
[334079921,1722745848680,-1353.828327,0.00015607,2]
[334079922,1722745848689,-151.0,0.00015607,2]
[334079923,1722745848699,-151.0,0.00015607,2]
[334079924,1722745848708,-632.35436,0.00015607,2]
[334079925,1722745848718,-151.0,0.00015607,2]
[334079926,1722745848727,-632.35436,0.00015607,2]
[334079927,1722745848736,-151.0,0.00015607,2]
[334079928,1722745848746,-632.35436,0.00015607,2]
[334079929,1722745848756,-632.35436,0.00015607,2]
[334079930,1722745848766,-151.0,0.00015607,2]
[334079931,1722745848775,-151.0,0.00015607,2]
[334079932,1722745848784,-151.0,0.00015607,2]
[334079933,1722745848793,-151.0,0.00015607,2]
[334079934,1722745848803,-151.0,0.00015607,2]
[334079935,1722745848812,-151.0,0.00015607,2]
[334079936,1722745848822,-151.0,0.00015607,2]
[334079937,1722745848831,-151.0,0.00015607,2]
[334079938,1722745848840,-186.946836,0.00015607,2]
[334079939,1722745848849,-167.426611,0.00015607,2]
[334079940,1722745848859,-473.99885299,0.00015607,2]
[334079941,1722745848868,-500.0,0.00015607,2]
[334079942,1722745848877,-410.33940407,0.00015607,2]
[334079943,1722745848886,-500.0,0.00015607,2]
[334079944,1722745848895,-500.0,0.00015607,2]
[334079945,1722745848905,-177.05226194,0.00015607,2]
[334079946,1722745848914,-500.0,0.00015607,2]
[334079947,1722745848923,-500.0,0.00015607,2]
[334079948,1722745848933,-500.0,0.00015607,2]
[334079949,1722745848942,-500.0,0.00015607,2]
[334079950,1722745848952,-500.0,0.00015607,2]
[334079951,1722745848961,-500.0,0.00015607,2]
[334079952,1722745848971,-500.0,0.00015607,2]
[334079953,1722745848981,-500.0,0.00015607,2]
[334079954,1722745848990,-500.0,0.00015607,2]
[334079955,1722745848999,-500.0,0.00015607,2]
[334079956,1722745849009,-500.0,0.00015607,2]
[334079957,1722745849019,-295.65349372,0.00015607,2]
[334079958,1722745849029,-500.0,0.00015607,2]
[334079959,1722745849038,-500.0,0.00015607,2]
[334079960,1722745849048,-500.0,0.00015607,2]
[334079961,1722745849057,-500.0,0.00015607,2]
[334079962,1722745849067,-500.0,0.00015608,2]
[334079963,1722745849077,-500.0,0.00015608,2]
[334079964,1722745849086,-500.0,0.00015608,2]
[334079965,1722745849096,-572.91164035,0.00015608,2]
[334079966,1722745849105,-500.0,0.00015608,2]
[334079967,1722745849115,-500.0,0.00015608,2]
[334079968,1722745849124,-500.0,0.00015608,2]
[334079969,1722745849133,-500.0,0.00015608,2]
[334079970,1722745849142,-471.66603527,0.00015608,2]
[334079971,1722745849165,-500.0,0.00015597,2]
[334079972,1722745849175,-28.33396473,0.00015608,2]
[334079973,1722745849186,-500.0,0.00015608,2]
[334079974,1722745849196,-500.0,0.00015608,2]
[334079975,1722745849205,-500.0,0.00015608,2]
[334079976,1722745849215,-500.0,0.00015608,2]
[334079977,1722745849224,-500.0,0.00015608,2]
[334079978,1722745849233,-500.0,0.00015608,2]
[334079979,1722745849244,-500.0,0.00015608,2]
[334079980,1722745849255,-500.0,0.00015608,2]
[334079981,1722745849266,-500.0,0.00015608,2]
[334079982,1722745849276,-500.0,0.00015608,2]
[334079983,1722745849287,-500.0,0.00015608,2]
[334079984,1722745849296,-500.0,0.00015608,2]
[334079985,1722745849306,-500.0,0.00015608,2]
[334079986,1722745849316,-500.0,0.00015608,2]
[334079987,1722745849326,-500.0,0.00015608,2]
[334079988,1722745849337,-252.55359026,0.00015608,2]
[334079989,1722745849347,-500.0,0.00015608,2]
[334079990,1722745849357,-500.0,0.00015608,2]
[334079991,1722745849367,-500.0,0.00015608,2]
[334079992,1722745849376,-500.0,0.00015608,2]
[334079993,1722745849385,-500.0,0.00015608,2]
[334079994,1722745849395,-500.0,0.00015608,2]
[334079995,1722745849404,-500.0,0.00015608,2]
[334079996,1722745849414,-500.0,0.00015608,2]
[334079997,1722745849424,-530.67,0.00015608,2]
[334079998,1722745849434,-530.67,0.00015608,2]
[334079999,1722745849445,-500.0,0.00015608,2]
[334080000,1722745849455,-500.0,0.00015608,2]
[334080001,1722745849465,-500.0,0.00015608,2]
[334080002,1722745849478,-500.0,0.00015608,2]
[334080003,1722745849570,-500.0,0.00015608,2]
[334080004,1722745849580,-500.0,0.00015608,2]
[334080005,1722745849590,-500.0,0.00015608,2]
[334080006,1722745849599,-500.0,0.00015608,2]
[334080007,1722745849609,-500.0,0.00015608,2]
[334080008,1722745849619,-500.0,0.00015608,2]
[334080009,1722745849629,-500.0,0.00015608,2]
[334080010,1722745849640,-500.0,0.00015608,2]
[334080011,1722745849650,-500.0,0.00015608,2]
[334080012,1722745849659,-516.53788919,0.00015608,2]
[334080013,1722745849669,-151.0,0.00015608,2]
[334080014,1722745849678,-151.0,0.00015608,2]
[334080015,1722745849690,-151.0,0.00015608,2]
[334080016,1722745849701,-624.72258713,0.00015608,2]
[334080017,1722745849711,-500.0,0.00015608,2]
[334080018,1722745849722,-500.0,0.00015608,2]
[334080019,1722745849731,-500.0,0.00015608,2]
[334080020,1722745849742,-500.0,0.00015608,2]
[334080021,1722745849752,-151.0,0.00015608,2]
[334080022,1722745849762,-152.682239,0.00015608,2]
[334080023,1722745849772,-500.0,0.00015608,2]
[334080024,1722745849782,-500.0,0.00015608,2]
[334080025,1722745849792,-500.0,0.00015608,2]
[334080026,1722745849801,-502.75147939,0.00015608,2]
[334080027,1722745849811,-500.0,0.00015608,2]
[334080028,1722745849822,-500.0,0.00015608,2]
[334080029,1722745849833,-500.0,0.00015608,2]
[334080030,1722745849843,-500.0,0.00015608,2]
[334080031,1722745849852,-408.403978,0.00015608,2]
[334080032,1722745849863,-408.403978,0.00015608,2]
[334080033,1722745849874,-408.403978,0.00015608,2]
[334080034,1722745849885,-500.0,0.00015608,2]
[334080035,1722745849895,-408.403978,0.00015608,2]
[334080036,1722745849905,-500.0,0.00015608,2]
[334080037,1722745849914,-408.403978,0.00015608,2]
[334080038,1722745849923,-408.403978,0.00015608,2]
[334080039,1722745849932,-500.0,0.00015608,2]
[334080040,1722745849941,-500.0,0.00015608,2]
[334080041,1722745849950,-151.0,0.00015608,2]
[334080042,1722745849958,-210.240504,0.00015608,2]
[334080043,1722745849968,-2058.29,0.00015608,2]
[334080044,1722745849977,-500.0,0.00015608,2]
[334080045,1722745849990,-500.0,0.00015608,2]
[334080046,1722745850000,-500.0,0.00015608,2]
[334080047,1722745850011,-500.0,0.00015608,2]
[334080048,1722745850021,-556.33638422,0.00015608,2]
[334080049,1722745850031,-151.0,0.00015608,2]
[334080050,1722745850041,-151.0,0.00015608,2]
[334080051,1722745850051,-151.0,0.00015608,2]
[334080052,1722745850061,-151.0,0.00015608,2]
[334080053,1722745850071,-500.0,0.00015608,2]
[334080054,1722745850080,-500.0,0.00015608,2]
[334080055,1722745850091,-151.0,0.00015608,2]
[334080056,1722745850101,-151.0,0.00015608,2]
[334080057,1722745850111,-151.0,0.00015608,2]
[334080058,1722745850121,-258.792428,0.00015608,2]
[334080059,1722745850130,-500.0,0.00015608,2]
[334080060,1722745850141,-500.0,0.00015608,2]
[334080061,1722745850151,-539.60704677,0.00015608,2]
[334080062,1722745850160,-951.106611,0.00015608,2]